Workbook

Sheet 7а
B2: ПРОТОКОЛ СПОРТИВНОЕ МНОГОБОРЬЕ (тесты)
B3: школьный этап Всероссийских спортивных соревнований школьников «Президентские спортивные игры»
B4: МОБУ ООШ №43 | D4: 7А класс | P4: Дата состязаний | S4: 2022-04-01
B6: Фамилия, имя учащегося | C6: п | E6: воз | F6: Результат состязаний
A7: № | C7: о | D7: Год | E7: раст | F7: Бег 60м | H7: Бег 800м/600д | J7: Прыжок | L7: метание
A8: п/п | C8: л | D8: рождения | E8: (лет) | F8: (сек.) | H8: (мин.сек.) | J8: в длину с разбега(см) | L8: мяча 140г (м) | T8: Итог
F9: рез-т | G9: очки | H9: рез-т | I9: очки | J9: рез-т | K9: очки | L9: рез-т | M9: очки
B10: Строки для настройки! | D10: Пересчёт | F10: м | G10: ж | H10: м | I10: ж | J10: м | K10: ж | L10: м | M10: ж | T10: 50/24/1//200/200//200/True
D11: 2 | F11: 12 | G11: 13 | H11: 2 | I11: 3 | J11: 6 | K11: 7 | L11: 10 | M11: 11
A12: 1 | B12: Андреев Влад | C12: м | D12: 2008 | E12: 14 | F12: 8.95 | G12: =ПрСостяз($C12,$E12,F$11,G$11,F12,$D$11) -> 93 | H12: 3.3 | I12: =ПрСостяз($C12,$E12,H$11,I$11,H12,$D$11) -> 38 | J12: 0 | K12: =ПрСостяз($C12,$E12,J$11,K$11,J12,$D$11) -> 0 | L12: 44 | M12: =ПрСостяз($C12,$E12,L$11,M$11,L12,$D$11) -> 72 | T12: =SUM($G12+$I12+$M12+$K12+$O12+$Q12+$S12) -> 203
A13: 2 | B13: Карибян Агоп | C13: м | D13: 2008 | E13: 13 | F13: 9.78 | G13: =ПрСостяз($C13,$E13,F$11,G$11,F13,$D$11) -> 69 | H13: 3.5 | I13: =ПрСостяз($C13,$E13,H$11,I$11,H13,$D$11) -> 13 | J13: 0 | K13: =ПрСостяз($C13,$E13,J$11,K$11,J13,$D$11) -> 0 | L13: 27 | M13: =ПрСостяз($C13,$E13,L$11,M$11,L13,$D$11) -> 33 | T13: 115
A14: 3 | B14: Муселимян Армен | C14: м | D14: 2008 | E14: 13 | F14: 9.75 | G14: 69 | H14: 3.45 | I14: 19 | J14: 0 | K14: 0 | L14: 27 | M14: 33 | T14: 121
A15: 4 | B15: Пономаренко Влад | C15: м | D15: 2008 | E15: 13 | F15: 9.45 | G15: 78 | H15: 3.35 | I15: 32 | J15: 0 | K15: 0 | L15: 39 | M15: 59 | T15: 169
A16: 5 | B16: Сорокин Андрей | C16: м | D16: 2008 | E16: 13 | F16: 9.58 | G16: 75 | H16: 3.43 | I16: 22 | J16: 0 | K16: 0 | L16: 27 | M16: 33 | T16: 130
A17: 6 | B17: Спиридонов Алексей | C17: м | D17: 2008 | E17: 13 | F17: 10.07 | G17: 60 | H17: 4.15 | I17: 0 | J17: 0 | K17: 0 | L17: 34 | M17: 47 | T17: 107
A20: Сумма очков | C20: м | F20: =G12+G13+G14+G15+G16+G17+G18+G19 -> 444 | H20: =I12+I13+I14+I15+I16+I17+I18+I19 -> 124 | J20: =K12+K13+K14+K15+K16+K17+K18+K19 -> 0 | L20: =M12+M13+M14+M15+M16+M17+M18+M19 -> 277 | T20: =SUM(T12:T19) -> 845
A22: 7 | B22: Волкова Виктория | C22: ж | D22: 2008 | E22: 14 | F22: 9.8 | G22: =ПрСостяз($C22,$E22,F$11,G$11,F22,$D$11) -> 102 | H22: 2.35 | I22: =ПрСостяз($C22,$E22,H$11,I$11,H22,$D$11) -> 45 | J22: 0 | K22: =ПрСостяз($C22,$E22,J$11,K$11,J22,$D$11) -> 0 | L22: 23 | M22: =ПрСостяз($C22,$E22,L$11,M$11,L22,$D$11) -> 42 | T22: =SUM($G22+$I22+$M22+$K22+$O22+$Q22+$S22) -> 189
A23: 8 | B23: Календжян Эмилия | C23: ж | D23: 2009 | E23: 13 | F23: 10.8 | G23: =ПрСостяз($C23,$E23,F$11,G$11,F23,$D$11) -> 72 | H23: 2.57 | I23: =ПрСостяз($C23,$E23,H$11,I$11,H23,$D$11) -> 6 | J23: 0 | K23: =ПрСостяз($C23,$E23,J$11,K$11,J23,$D$11) -> 0 | L23: 29 | M23: =ПрСостяз($C23,$E23,L$11,M$11,L23,$D$11) -> 57 | T23: 135
A24: 9 | B24: Мкртчян Роза | C24: ж | D24: 2008 | E24: 13 | F24: 10.9 | G24: 69 | H24: 2.35 | I24: 45 | J24: 0 | K24: 0 | L24: 22 | M24: 39 | T24: 153
A25: 10 | B25: Ромахина Эвелина | C25: ж | D25: 2008 | E25: 13 | F25: 10.3 | G25: 87 | H25: 2.28 | I25: 59 | J25: 0 | K25: 0 | L25: 20 | M25: 34 | T25: 180
A26: 11 | B26: Мартюшева Диана | C26: ж | D26: 2008 | E26: 14 | F26: 10.9 | G26: 69 | H26: 2.4 | I26: 35 | J26: 0 | K26: 0 | L26: 12 | M26: 14 | T26: 118
A27: 12 | B27: Мусельмян Ангелина | C27: ж | D27: 2008 | E27: 13 | F27: 11.2 | G27: 60 | H27: 3.05 | I27: 0 | J27: 0 | K27: 0 | L27: 20 | M27: 34 | T27: 94
A30: Сумма очков | C30: ж | F30: =G22+G23+G24+G25+G26+G27+G28+G29 -> 459 | H30: =I22+I23+I24+I25+I26+I27+I28+I29 -> 190 | J30: =K22+K23+K24+K25+K26+K27+K28+K29 -> 0 | L30: =M22+M23+M24+M25+M26+M27+M28+M29 -> 220 | T30: =SUM(T22:T29) -> 869
A32: Общая сумма очков | F32: =SUM(F20,F30) -> 903 | H32: =SUM(H20,H30) -> 314 | J32: =SUM(J20,J30) -> 0 | L32: =SUM(L20,L30) -> 497 | T32: =SUM(T20,T30) -> 1714
B34: Директор МОБУ ООШ №43_______________________ | F34: Л.А.Карибян

Sheet 8а
B2: ПРОТОКОЛ СПОРТИВНОЕ МНОГОБОРЬЕ (тесты)
B3: школьный этап Всероссийских спортивных соревнований школьников «Президентские спортивные игры»
B4: МОБУ ООШ №43 | D4: 8А класс | P4: Дата состязаний | S4: 2022-04-01
B6: Фамилия, имя учащегося | C6: п | E6: воз | F6: Результат состязаний
A7: № | C7: о | D7: Год | E7: раст | F7: Бег 60м | H7: Бег 800м/600д | J7: Прыжок | L7: метание
A8: п/п | C8: л | D8: рождения | E8: (лет) | F8: (сек.) | H8: (мин.сек.) | J8: в длину с разбега(см) | L8: мяча 140г (м) | T8: Итог
F9: рез-т | G9: очки | H9: рез-т | I9: очки | J9: рез-т | K9: очки | L9: рез-т | M9: очки
B10: Строки для настройки! | D10: Пересчёт | F10: м | G10: ж | H10: м | I10: ж | J10: м | K10: ж | L10: м | M10: ж | T10: 50/24/1//200/200//200/True
D11: 2 | F11: 12 | G11: 13 | H11: 2 | I11: 3 | J11: 6 | K11: 7 | L11: 10 | M11: 11
A12: 1 | B12: Авджян Артур | C12: м | D12: 2007 | E12: 14 | F12: 9.62 | G12: =ПрСостяз($C12,$E12,F$11,G$11,F12,$D$11) -> 72 | H12: 2.55 | I12: =ПрСостяз($C12,$E12,H$11,I$11,H12,$D$11) -> 82 | J12: 0 | K12: =ПрСостяз($C12,$E12,J$11,K$11,J12,$D$11) -> 0 | L12: 21 | M12: =ПрСостяз($C12,$E12,L$11,M$11,L12,$D$11) -> 21 | T12: =SUM($G12+$I12+$M12+$K12+$O12+$Q12+$S12) -> 175
A13: 2 | B13: Бедикян Сергей | C13: м | D13: 2007 | E13: 14 | F13: 9.75 | G13: =ПрСостяз($C13,$E13,F$11,G$11,F13,$D$11) -> 69 | H13: 2.47 | I13: =ПрСостяз($C13,$E13,H$11,I$11,H13,$D$11) -> 92 | J13: 0 | K13: =ПрСостяз($C13,$E13,J$11,K$11,J13,$D$11) -> 0 | L13: 35 | M13: =ПрСостяз($C13,$E13,L$11,M$11,L13,$D$11) -> 49 | T13: 210
A14: 3 | B14: Бобров Артем | C14: м | D14: 2007 | E14: 14 | F14: 9.72 | G14: 69 | H14: 3.1 | I14: 63 | J14: 0 | K14: 0 | L14: 33 | M14: 45 | T14: 177
A15: 4 | B15: Магдесян Григорий | C15: м | D15: 2007 | E15: 15 | F15: 9.88 | G15: 66 | H15: 3.38 | I15: 28 | J15: 0 | K15: 0 | L15: 33 | M15: 45 | T15: 139
A16: 5 | B16: Сердюк Данил | C16: м | D16: 2007 | E16: 14 | F16: 9.9 | G16: 66 | H16: 3.1 | I16: 63 | J16: 0 | K16: 0 | L16: 30 | M16: 39 | T16: 168
A17: 6 | B17: Татулян Давид | C17: м | D17: 2007 | E17: 15 | F17: 9.7 | G17: 72 | H17: 3.05 | I17: 69 | J17: 0 | K17: 0 | L17: 28 | M17: 35 | T17: 176
A20: Сумма очков | C20: м | F20: =G12+G13+G14+G15+G16+G17+G18+G19 -> 414 | H20: =I12+I13+I14+I15+I16+I17+I18+I19 -> 397 | J20: =K12+K13+K14+K15+K16+K17+K18+K19 -> 0 | L20: =M12+M13+M14+M15+M16+M17+M18+M19 -> 234 | T20: =SUM(T12:T19) -> 1045
A22: 7 | B22: Алексонян Ариана | C22: ж | D22: 2007 | E22: 14 | F22: 10.3 | G22: =ПрСостяз($C22,$E22,F$11,G$11,F22,$D$11) -> 87 | H22: 2.43 | I22: =ПрСостяз($C22,$E22,H$11,I$11,H22,$D$11) -> 29 | J22: 0 | K22: =ПрСостяз($C22,$E22,J$11,K$11,J22,$D$11) -> 0 | L22: 21 | M22: =ПрСостяз($C22,$E22,L$11,M$11,L22,$D$11) -> 37 | T22: =SUM($G22+$I22+$M22+$K22+$O22+$Q22+$S22) -> 153
A23: 8 | B23: Байсарова Милана | C23: ж | D23: 2007 | E23: 14 | F23: 10.85 | G23: =ПрСостяз($C23,$E23,F$11,G$11,F23,$D$11) -> 69 | H23: 2.59 | I23: =ПрСостяз($C23,$E23,H$11,I$11,H23,$D$11) -> 2 | J23: 0 | K23: =ПрСостяз($C23,$E23,J$11,K$11,J23,$D$11) -> 0 | L23: 15 | M23: =ПрСостяз($C23,$E23,L$11,M$11,L23,$D$11) -> 22 | T23: 93
A24: 9 | B24: Кещян Екатерина | C24: ж | D24: 2007 | E24: 14 | F24: 9.9 | G24: 99 | H24: 2.25 | I24: 65 | J24: 0 | K24: 0 | L24: 19 | M24: 32 | T24: 196
A25: 10 | B25: Крипан Ангелина | C25: ж | D25: 2007 | E25: 14 | F25: 10.6 | G25: 78 | H25: 2.27 | I25: 61 | J25: 0 | K25: 0 | L25: 24 | M25: 44 | T25: 183
A26: 11 | B26: Минасян Жанна | C26: ж | D26: 2007 | E26: 14 | F26: 10.4 | G26: 84 | H26: 2.48 | I26: 21 | J26: 0 | K26: 0 | L26: 23 | M26: 42 | T26: 147
A27: 12 | B27: Усаева Ильсия | C27: ж | D27: 2007 | E27: 14 | F27: 10.3 | G27: 87 | H27: 2.3 | I27: 55 | J27: 0 | K27: 0 | L27: 19 | M27: 32 | T27: 174
A30: Сумма очков | C30: ж | F30: =G22+G23+G24+G25+G26+G27+G28+G29 -> 504 | H30: =I22+I23+I24+I25+I26+I27+I28+I29 -> 233 | J30: =K22+K23+K24+K25+K26+K27+K28+K29 -> 0 | L30: =M22+M23+M24+M25+M26+M27+M28+M29 -> 209 | T30: =SUM(T22:T29) -> 946
A32: Общая сумма очков | F32: =SUM(F20,F30) -> 918 | H32: =SUM(H20,H30) -> 630 | J32: =SUM(J20,J30) -> 0 | L32: =SUM(L20,L30) -> 443 | T32: =SUM(T20,T30) -> 1991
B34: Директор МОБУ ООШ №43_______________________ | F34: Л.А.Карибян

Sheet 13
A1: 13
A2: Очки | B2: Бег 800м/600д (мин сек) | F2: Прыжок с разбега (см) | J2: Метание мяча 140 гр (м) | L2: Бег 60 м (сек) | M2: 30 м
B3: м | C3: ж | D3: м | E3: ж | F3: м | G3: ж | H3: м | I3: ж | J3: м | K3: ж | L3: м | M3: ж
A4: 150 | B4: 2.01 | C4: 1.43 | F4: 660 | G4: 555 | J4: 70 | K4: 58 | L4: 7.1 | M4: 8
A5: 149 | B5: - | C5: - | F5: 659 | G5: 554 | J5: 69.7 | K5: 57.9 | L5: - | M5: -
A6: 148 | B6: 2.02 | C6: - | F6: 658 | G6: 553 | J6: 69.5 | K6: 57.8 | L6: - | M6: 8.1
A7: 147 | B7: 2.03 | C7: 1.44 | F7: 657 | G7: 552 | J7: 69.3 | K7: 57.7 | L7: 7.2 | M7: -
A8: 146 | B8: 2.04 | C8: - | F8: 656 | G8: 551 | J8: 69.1 | K8: 57.6 | L8: - | M8: 8.2
A9: 145 | B9: - | C9: 1.45 | F9: 655 | G9: 550 | J9: 68.9 | K9: 57.4 | L9: - | M9: -
A10: 144 | B10: 2.05 | C10: - | F10: 654 | G10: 549 | J10: 68.7 | K10: 57.2 | L10: 7.3 | M10: 8.3
A11: 143 | B11: 2.06 | C11: 1.46 | F11: 653 | G11: 548 | J11: 68.5 | K11: 57 | L11: - | M11: -
A12: 142 | B12: 2.07 | C12: - | F12: 652 | G12: 547 | J12: 68.3 | K12: 56.8 | L12: - | M12: 8.4
A13: 141 | B13: 2.08 | C13: 1.47 | F13: 651 | G13: 546 | J13: 68.1 | K13: 56.6 | L13: 7.4 | M13: -
A14: 140 | B14: - | C14: - | F14: 650 | G14: 545 | J14: 67.9 | K14: 56.4 | L14: - | M14: 8.5
A15: 139 | B15: 2.09 | C15: 1.48 | F15: 649 | G15: 544 | J15: 67.7 | K15: 56.2 | L15: - | M15: -
A16: 138 | B16: 2.1 | C16: - | F16: 648 | G16: 543 | J16: 67.5 | K16: 56 | L16: 7.5 | M16: 8.6
A17: 137 | B17: 2.11 | C17: 1.49 | F17: 647 | G17: 542 | J17: 67.3 | K17: 55.7 | L17: - | M17: -
A18: 136 | B18: 2.12 | C18: - | F18: 646 | G18: 541 | J18: 67 | K18: 55.4 | L18: - | M18: -
A19: 135 | B19: - | C19: 1.5 | F19: 645 | G19: 540 | J19: 66.7 | K19: 55.1 | L19: 7.6 | M19: 8.7
A20: 134 | B20: 2.13 | C20: - | F20: 644 | G20: 539 | J20: 66.4 | K20: 54.8 | L20: - | M20: -
A21: 133 | B21: 2.14 | C21: 1.51 | F21: 643 | G21: 538 | J21: 66.1 | K21: 54.5 | L21: - | M21: -
A22: 132 | B22: 2.15 | C22: - | F22: 642 | G22: 537 | J22: 65.8 | K22: 54.2 | L22: 7.7 | M22: 8.8
A23: 131 | B23: 2.16 | C23: 1.52 | F23: 641 | G23: 536 | J23: 65.5 | K23: 53.9 | L23: - | M23: -
A24: 130 | B24: - | C24: - | F24: 640 | G24: 535 | J24: 65.2 | K24: 53.6 | L24: - | M24: -
A25: 129 | B25: 2.17 | C25: 1.53 | F25: 639 | G25: 534 | J25: 64.9 | K25: 53.3 | L25: 7.8 | M25: 8.9
A26: 128 | B26: 2.18 | C26: - | F26: 638 | G26: 533 | J26: 64.6 | K26: 53 | L26: - | M26: -
A27: 127 | B27: 2.19 | C27: 1.54 | F27: 637 | G27: 532 | J27: 64.3 | K27: 52.7 | L27: - | M27: -
A28: 126 | B28: 2.2 | C28: - | F28: 636 | G28: 531 | J28: 64 | K28: 52.4 | L28: 7.9 | M28: 9
A29: 125 | B29: - | C29: 1.55 | F29: 635 | G29: 530 | J29: 63.7 | K29: 52.1 | L29: - | M29: -
A30: 124 | B30: 2.21 | C30: - | F30: 634 | G30: 529 | J30: 63.4 | K30: 51.8 | L30: - | M30: -
A31: 123 | B31: 2.22 | C31: 1.56 | F31: 633 | G31: 528 | J31: 63.1 | K31: 51.5 | L31: 8 | M31: 9.1
A32: 122 | B32: 2.23 | C32: - | F32: 632 | G32: 527 | J32: 62.8 | K32: 51.2 | L32: - | M32: -
A33: 121 | B33: 2.24 | C33: 1.57 | F33: 630 | G33: 526 | J33: 62.5 | K33: 50.9 | L33: - | M33: -
A34: 120 | B34: - | C34: - | F34: 628 | G34: 525 | J34: 62.2 | K34: 50.6 | L34: 8.1 | M34: 9.2
A35: 119 | B35: 2.25 | C35: 1.58 | F35: 626 | G35: 524 | J35: 61.9 | K35: 50.3 | L35: - | M35: -
A36: 118 | B36: 2.26 | C36: - | F36: 624 | G36: 523 | J36: 61.6 | K36: 50 | L36: - | M36: -
A37: 117 | B37: 2.27 | C37: 1.59 | F37: 622 | G37: 522 | J37: 61.3 | K37: 49.7 | L37: 8.2 | M37: 9.3
A38: 116 | B38: 2.28 | C38: - | F38: 620 | G38: 521 | J38: 61 | K38: 49.4 | L38: - | M38: -
A39: 115 | B39: - | C39: 2 | F39: 618 | G39: 520 | J39: 60.7 | K39: 49.1 | L39: - | M39: -
A40: 114 | B40: 2.29 | C40: - | F40: 616 | G40: 519 | J40: 60.4 | K40: 48.8 | L40: 8.3 | M40: 9.4
A41: 113 | B41: 2.3 | C41: 2.01 | F41: 614 | G41: 518 | J41: 60.1 | K41: 48.5 | L41: - | M41: -
A42: 112 | B42: 2.31 | C42: - | F42: 612 | G42: 517 | J42: 59.8 | K42: 48.2 | L42: - | M42: -
A43: 111 | B43: 2.32 | C43: 2.02 | F43: 610 | G43: 516 | J43: 59.5 | K43: 47.9 | L43: 8.4 | M43: 9.5
A44: 110 | B44: - | C44: - | F44: 608 | G44: 515 | J44: 59.1 | K44: 47.6 | L44: - | M44: -
A45: 109 | B45: 2.33 | C45: 2.03 | F45: 606 | G45: 514 | J45: 58.7 | K45: 47.3 | L45: - | M45: -
A46: 108 | B46: 2.34 | C46: - | F46: 604 | G46: 513 | J46: 58.3 | K46: 47 | L46: 8.5 | M46: 9.6
A47: 107 | B47: 2.35 | C47: 2.04 | F47: 602 | G47: 512 | J47: 57.9 | K47: 46.7 | L47: - | M47: -
A48: 106 | B48: 2.36 | C48: - | F48: 600 | G48: 511 | J48: 57.5 | K48: 46.4 | L48: - | M48: -
A49: 105 | B49: - | C49: 2.05 | F49: 598 | G49: 510 | J49: 57.1 | K49: 46.1 | L49: 8.6 | M49: 9.7
A50: 104 | B50: 2.37 | C50: - | F50: 596 | G50: 509 | J50: 56.7 | K50: 45.8 | L50: - | M50: -
A51: 103 | B51: 2.38 | C51: 2.06 | F51: 594 | G51: 507 | J51: 56.3 | K51: 45.5 | L51: - | M51: -
A52: 102 | B52: 2.39 | C52: - | F52: 592 | G52: 505 | J52: 55.9 | K52: 45.2 | L52: 8.7 | M52: 9.8
A53: 101 | B53: 2.4 | C53: 2.07 | F53: 590 | G53: 503 | J53: 55.5 | K53: 44.9 | L53: - | M53: -
A54: 100 | B54: - | C54: - | F54: 588 | G54: 501 | J54: 55.1 | K54: 44.6 | L54: - | M54: -
A55: 99 | B55: 2.41 | C55: 2.08 | F55: 586 | G55: 499 | J55: 54.7 | K55: 44.3 | L55: 8.8 | M55: 9.9
A56: 98 | B56: 2.42 | C56: - | F56: 584 | G56: 497 | J56: 54.3 | K56: 44 | L56: - | M56: -
A57: 97 | B57: 2.43 | C57: 2.09 | F57: 582 | G57: 495 | J57: 53.9 | K57: 43.7 | L57: - | M57: -
A58: 96 | B58: 2.44 | C58: - | F58: 580 | G58: 493 | J58: 53.5 | K58: 43.4 | L58: 8.9 | M58: 10
A59: 95 | B59: - | C59: 2.1 | F59: 578 | G59: 491 | J59: 53.1 | K59: 43.1 | L59: - | M59: -
A60: 94 | B60: 2.45 | C60: - | F60: 576 | G60: 489 | J60: 52.7 | K60: 42.8 | L60: - | M60: -
A61: 93 | B61: 2.46 | C61: 2.11 | F61: 574 | G61: 487 | J61: 52.3 | K61: 42.5 | L61: 9 | M61: 10.1
A62: 92 | B62: 2.47 | C62: - | F62: 572 | G62: 485 | J62: 51.9 | K62: 42.2 | L62: - | M62: -
A63: 91 | B63: 2.48 | C63: 2.12 | F63: 570 | G63: 483 | J63: 51.5 | K63: 41.9 | L63: - | M63: -
A64: 90 | B64: - | C64: - | F64: 568 | G64: 481 | J64: 51.1 | K64: 41.6 | L64: 9.1 | M64: 10.2
A65: 89 | B65: 2.49 | C65: 2.13 | F65: 566 | G65: 479 | J65: 50.7 | K65: 41.3 | L65: - | M65: -
A66: 88 | B66: 2.5 | C66: - | F66: 564 | G66: 477 | J66: 50.3 | K66: 41 | L66: - | M66: -
A67: 87 | B67: 2.51 | C67: 2.14 | F67: 562 | G67: 475 | J67: 49.9 | K67: 40.7 | L67: 9.2 | M67: 10.3
A68: 86 | B68: 2.52 | C68: - | F68: 559 | G68: 473 | J68: 49.5 | K68: 40.4 | L68: - | M68: -
A69: 85 | B69: - | C69: 2.15 | F69: 556 | G69: 471 | J69: 49.1 | K69: 40.1 | L69: - | M69: -
A70: 84 | B70: 2.53 | C70: - | F70: 553 | G70: 469 | J70: 48.7 | K70: 39.7 | L70: 9.3 | M70: 10.4
A71: 83 | B71: 2.54 | C71: 2.16 | F71: 550 | G71: 467 | J71: 48.3 | K71: 39.3 | L71: - | M71: -
A72: 82 | B72: 2.55 | C72: - | F72: 547 | G72: 465 | J72: 47.9 | K72: 38.9 | L72: - | M72: -
A73: 81 | B73: 2.56 | C73: 2.17 | F73: 544 | G73: 463 | J73: 47.5 | K73: 38.5 | L73: 9.4 | M73: 10.5
A74: 80 | B74: - | F74: 541 | G74: 461 | J74: 47.1 | K74: 38.1 | L74: - | M74: -
A75: 79 | B75: 2.57 | C75: 2.18 | F75: 538 | G75: 459 | J75: 46.7 | K75: 37.7 | L75: - | M75: -
A76: 78 | B76: 2.58 | C76: - | F76: 535 | G76: 457 | J76: 46.3 | K76: 37.3 | L76: 9.5 | M76: 10.6
A77: 77 | B77: 2.59 | C77: 2.19 | F77: 532 | G77: 455 | J77: 45.9 | K77: 36.9 | L77: - | M77: -
A78: 76 | B78: 3 | C78: - | F78: 529 | G78: 453 | J78: 45.5 | K78: 36.5 | L78: - | M78: -
A79: 75 | B79: - | C79: 2.2 | F79: 526 | G79: 451 | J79: 45.1 | K79: 36.1 | L79: 9.6 | M79: 10.7
A80: 74 | B80: 3.01 | C80: - | F80: 523 | G80: 449 | J80: 44.7 | K80: 35.7 | L80: - | M80: -
A81: 73 | B81: 3.02 | C81: 2.21 | F81: 520 | G81: 447 | J81: 44.3 | K81: 35.3 | L81: - | M81: -
A82: 72 | B82: 3.03 | C82: - | F82: 517 | G82: 445 | J82: 43.9 | K82: 34.9 | L82: 9.7 | M82: 10.8
A83: 71 | B83: 3.04 | C83: 2.22 | F83: 514 | G83: 443 | J83: 43.5 | K83: 34.5 | L83: - | M83: -
A84: 70 | B84: - | C84: - | F84: 511 | G84: 441 | J84: 43.1 | K84: 34.1 | L84: - | M84: -
A85: 69 | B85: 3.05 | C85: 2.23 | F85: 508 | G85: 439 | J85: 42.7 | K85: 33.7 | L85: 9.8 | M85: 10.9
A86: 68 | B86: 3.06 | C86: - | F86: 505 | G86: 437 | J86: 42.3 | K86: 33.3 | L86: - | M86: -
A87: 67 | B87: 3.07 | C87: 2.24 | F87: 502 | G87: 435 | J87: 41.9 | K87: 32.9 | L87: - | M87: -
A88: 66 | B88: 3.08 | C88: - | F88: 499 | G88: 433 | J88: 41.5 | K88: 32.5 | L88: 9.9 | M88: 11
A89: 65 | B89: - | C89: 2.25 | F89: 496 | G89: 431 | J89: 41.1 | K89: 32.1 | L89: - | M89: -
A90: 64 | B90: 3.09 | C90: - | F90: 493 | G90: 429 | J90: 40.7 | K90: 31.7 | L90: - | M90: -
A91: 63 | B91: 3.1 | C91: 2.26 | F91: 490 | G91: 427 | J91: 40.3 | K91: 31.3 | L91: 10 | M91: 11.1
A92: 62 | B92: 3.11 | C92: - | F92: 487 | G92: 425 | J92: 39.9 | K92: 30.9 | L92: - | M92: -
A93: 61 | B93: 3.12 | C93: 2.27 | F93: 484 | G93: 423 | J93: 39.5 | K93: 30.5 | L93: - | M93: -
A94: 60 | B94: - | C94: - | F94: 481 | G94: 421 | J94: 39.1 | K94: 30.1 | L94: 10.1 | M94: 11.2
A95: 59 | B95: 3.13 | C95: 2.28 | F95: 478 | G95: 419 | J95: 38.7 | K95: 29.7 | L95: - | M95: -
A96: 58 | B96: 3.14 | C96: - | F96: 475 | G96: 417 | J96: 38.3 | K96: 29.3 | L96: - | M96: -
A97: 57 | B97: 3.15 | C97: 2.29 | F97: 472 | G97: 415 | J97: 37.9 | K97: 28.9 | L97: 10.2 | M97: 11.3
A98: 56 | B98: 3.16 | C98: - | F98: 469 | G98: 413 | J98: 37.5 | K98: 28.5 | L98: - | M98: -
A99: 55 | B99: - | C99: 2.3 | F99: 466 | G99: 411 | J99: 37.1 | K99: 28.1 | L99: - | M99: -
A100: 54 | B100: 3.17 | C100: - | F100: 463 | G100: 408 | J100: 36.7 | K100: 27.7 | L100: 10.3 | M100: 11.4
A101: 53 | B101: 3.18 | C101: 2.31 | F101: 460 | G101: 405 | J101: 36.3 | K101: 27.3 | L101: - | M101: -
A102: 52 | B102: 3.19 | C102: - | F102: 457 | G102: 402 | J102: 35.9 | K102: 26.9 | L102: - | M102: -
A103: 51 | B103: 3.2 | C103: 2.32 | F103: 453 | G103: 399 | J103: 35.5 | K103: 26.5 | L103: 10.4 | M103: 11.5
A104: 50 | B104: - | C104: - | F104: 449 | G104: 396 | J104: 35.1 | K104: 26.1 | L104: - | M104: -
A105: 49 | B105: 3.21 | C105: 2.33 | F105: 445 | G105: 393 | J105: 34.7 | K105: 25.7 | L105: - | M105: -
A106: 48 | B106: 3.22 | C106: - | F106: 441 | G106: 390 | J106: 34.3 | K106: 25.3 | L106: 10.5 | M106: 11.6
A107: 47 | B107: 3.23 | C107: 2.34 | F107: 437 | G107: 387 | J107: 33.9 | K107: 24.9 | L107: - | M107: -
A108: 46 | B108: 3.24 | C108: - | F108: 433 | G108: 384 | J108: 33.5 | K108: 24.5 | L108: - | M108: -
A109: 45 | B109: - | C109: 2.35 | F109: 429 | G109: 381 | J109: 33 | K109: 24.1 | L109: 10.6 | M109: 11.7
A110: 44 | B110: 3.25 | C110: - | F110: 425 | G110: 378 | J110: 32.5 | K110: 23.7 | L110: - | M110: -
A111: 43 | B111: 3.26 | C111: 2.36 | F111: 421 | G111: 375 | J111: 32 | K111: 23.3 | L111: - | M111: -
A112: 42 | B112: 3.27 | C112: - | F112: 417 | G112: 372 | J112: 31.5 | K112: 22.9 | L112: 10.7 | M112: 11.8
A113: 41 | B113: 3.28 | C113: 2.37 | F113: 413 | G113: 369 | J113: 31 | K113: 22.5 | L113: - | M113: -
A114: 40 | B114: - | C114: - | F114: 409 | G114: 366 | J114: 30.5 | K114: 22.1 | L114: - | M114: -
A115: 39 | B115: 3.29 | C115: 2.38 | F115: 405 | G115: 363 | J115: 30 | K115: 21.7 | L115: 10.8 | M115: 11.9
A116: 38 | B116: 3.3 | C116: - | F116: 401 | G116: 360 | J116: 29.5 | K116: 21.3 | L116: - | M116: -
A117: 37 | B117: 3.31 | C117: 2.39 | F117: 397 | G117: 357 | J117: 29 | K117: 20.9 | L117: - | M117: -
A118: 36 | B118: 3.32 | C118: - | F118: 393 | G118: 353 | J118: 28.5 | K118: 20.5 | L118: 10.9 | M118: 12
A119: 35 | B119: - | C119: 2.4 | F119: 389 | G119: 349 | J119: 28 | K119: 20.1 | L119: - | M119: -
A120: 34 | B120: 3.33 | C120: - | F120: 385 | G120: 345 | J120: 27.5 | K120: 19.7 | L120: - | M120: -
A121: 33 | B121: 3.34 | C121: 2.41 | F121: 381 | G121: 341 | J121: 27 | K121: 19.3 | L121: 11 | M121: 12.1
A122: 32 | B122: 3.35 | C122: - | F122: 377 | G122: 337 | J122: 26.5 | K122: 18.9 | L122: - | M122: -
A123: 31 | B123: 3.36 | C123: 2.42 | F123: 373 | G123: 333 | J123: 26 | K123: 18.5 | L123: - | M123: -
A124: 30 | B124: - | C124: - | F124: 369 | G124: 329 | J124: 25.5 | K124: 18.1 | L124: 11.1 | M124: 12.2
A125: 29 | B125: 3.37 | C125: 2.43 | F125: 365 | G125: 325 | J125: 25 | K125: 17.7 | L125: - | M125: -
A126: 28 | B126: 3.38 | C126: - | F126: 361 | G126: 321 | J126: 24.5 | K126: 17.3 | L126: - | M126: -
A127: 27 | B127: 3.39 | C127: 2.44 | F127: 357 | G127: 317 | J127: 24 | K127: 16.9 | L127: 11.2 | M127: 12.3
A128: 26 | B128: 3.4 | C128: - | F128: 353 | G128: 313 | J128: 23.5 | K128: 16.5 | L128: - | M128: -
A129: 25 | B129: - | C129: 2.45 | F129: 349 | G129: 309 | J129: 23 | K129: 16.1 | L129: - | M129: -
A130: 24 | B130: 3.41 | C130: 2.46 | F130: 345 | G130: 305 | J130: 22.5 | K130: 15.7 | L130: 11.3 | M130: 12.4
A131: 23 | B131: 3.42 | C131: - | F131: 340 | G131: 301 | J131: 22 | K131: 15.3 | L131: - | M131: -
A132: 22 | B132: 3.43 | C132: 2.47 | F132: 335 | G132: 297 | J132: 21.5 | K132: 14.9 | L132: - | M132: -
A133: 21 | B133: 3.44 | C133: 2.48 | F133: 330 | G133: 293 | J133: 21 | K133: 14.5 | L133: 11.4 | M133: 12.5
A134: 20 | B134: - | C134: - | F134: 325 | G134: 289 | J134: 20.5 | K134: 14.1 | L134: - | M134: -
A135: 19 | B135: 3.45 | C135: 2.49 | F135: 320 | G135: 285 | J135: 20 | K135: 13.7 | L135: - | M135: 12.6
A136: 18 | B136: 3.46 | C136: - | F136: 315 | G136: 281 | J136: 19.5 | K136: 13.3 | L136: 11.5 | M136: -
A137: 17 | B137: 3.47 | C137: 2.5 | F137: 310 | G137: 277 | J137: 19 | K137: 12.9 | L137: - | M137: 12.7
A138: 16 | B138: 3.48 | C138: 2.51 | F138: 305 | G138: 273 | J138: 18.5 | K138: 12.5 | L138: - | M138: -
A139: 15 | B139: - | C139: - | F139: 300 | G139: 269 | J139: 18 | K139: 12.1 | L139: 11.6 | M139: 12.8
A140: 14 | B140: 3.49 | C140: 2.52 | F140: 295 | G140: 265 | J140: 17.5 | K140: 11.7 | L140: - | M140: -
A141: 13 | B141: 3.5 | C141: - | F141: 290 | G141: 260 | J141: 17 | K141: 11.3 | L141: - | M141: 12.9
A142: 12 | B142: 3.51 | C142: 2.53 | F142: 285 | G142: 255 | J142: 16.5 | K142: 10.9 | L142: 11.7 | M142: -
A143: 11 | B143: 3.52 | C143: 2.54 | F143: 280 | G143: 250 | J143: 16 | K143: 10.5 | L143: - | M143: 13
A144: 10 | B144: - | C144: - | F144: 275 | G144: 245 | J144: 15.5 | K144: 10.1 | L144: - | M144: -
A145: 9 | B145: 3.53 | C145: 2.55 | F145: 270 | G145: 240 | J145: 15 | K145: 9.7 | L145: 11.8 | M145: 13.1
A146: 8 | B146: 3.54 | C146: - | F146: 265 | G146: 235 | J146: 14.5 | K146: 9.3 | L146: - | M146: -
A147: 7 | B147: 3.55 | C147: 2.56 | F147: 260 | G147: 230 | J147: 14 | K147: 8.9 | L147: 11.9 | M147: 13.2
A148: 6 | B148: 3.56 | C148: 2.57 | F148: 255 | G148: 225 | J148: 13.5 | K148: 8.5 | L148: - | M148: -
A149: 5 | B149: - | C149: - | F149: 250 | G149: 220 | J149: 13 | K149: 8.1 | L149: 12 | M149: 13.3
A150: 4 | B150: 3.57 | C150: 2.58 | F150: 245 | G150: 215 | J150: 12.5 | K150: 7.7 | L150: - | M150: -
A151: 3 | B151: 3.58 | C151: - | F151: 240 | G151: 210 | J151: 12 | K151: 7.3 | L151: 12.1 | M151: 13.4
A152: 2 | B152: 3.59 | C152: 2.59 | F152: 235 | G152: 205 | J152: 11.5 | K152: 6.9 | L152: - | M152: -
A153: 1 | B153: 4 | C153: 3 | F153: 230 | G153: 200 | J153: 11 | K153: 6.5 | L153: 12.2 | M153: 13.5

Sheet 14
A1: 14
A2: Очки | B2: Бег 800м/600д (мин сек) | F2: Прыжок с разбега (см) | J2: Метание мяча 140 гр (м) | L2: Бег 60 м (сек) | M2: 30 м
B3: м | C3: ж | D3: м | E3: ж | F3: м | G3: ж | H3: м | I3: ж | J3: м | K3: ж | L3: м | M3: ж
A4: 150 | B4: 2.01 | C4: 1.43 | F4: 660 | G4: 555 | J4: 70 | K4: 58 | L4: 7.1 | M4: 8
A5: 149 | B5: - | C5: - | F5: 659 | G5: 554 | J5: 69.7 | K5: 57.9 | L5: - | M5: -
A6: 148 | B6: 2.02 | C6: - | F6: 658 | G6: 553 | J6: 69.5 | K6: 57.8 | L6: - | M6: 8.1
A7: 147 | B7: 2.03 | C7: 1.44 | F7: 657 | G7: 552 | J7: 69.3 | K7: 57.7 | L7: 7.2 | M7: -
A8: 146 | B8: 2.04 | C8: - | F8: 656 | G8: 551 | J8: 69.1 | K8: 57.6 | L8: - | M8: 8.2
A9: 145 | B9: - | C9: 1.45 | F9: 655 | G9: 550 | J9: 68.9 | K9: 57.4 | L9: - | M9: -
A10: 144 | B10: 2.05 | C10: - | F10: 654 | G10: 549 | J10: 68.7 | K10: 57.2 | L10: 7.3 | M10: 8.3
A11: 143 | B11: 2.06 | C11: 1.46 | F11: 653 | G11: 548 | J11: 68.5 | K11: 57 | L11: - | M11: -
A12: 142 | B12: 2.07 | C12: - | F12: 652 | G12: 547 | J12: 68.3 | K12: 56.8 | L12: - | M12: 8.4
A13: 141 | B13: 2.08 | C13: 1.47 | F13: 651 | G13: 546 | J13: 68.1 | K13: 56.6 | L13: 7.4 | M13: -
A14: 140 | B14: - | C14: - | F14: 650 | G14: 545 | J14: 67.9 | K14: 56.4 | L14: - | M14: 8.5
A15: 139 | B15: 2.09 | C15: 1.48 | F15: 649 | G15: 544 | J15: 67.7 | K15: 56.2 | L15: - | M15: -
A16: 138 | B16: 2.1 | C16: - | F16: 648 | G16: 543 | J16: 67.5 | K16: 56 | L16: 7.5 | M16: 8.6
A17: 137 | B17: 2.11 | C17: 1.49 | F17: 647 | G17: 542 | J17: 67.3 | K17: 55.7 | L17: - | M17: -
A18: 136 | B18: 2.12 | C18: - | F18: 646 | G18: 541 | J18: 67 | K18: 55.4 | L18: - | M18: -
A19: 135 | B19: - | C19: 1.5 | F19: 645 | G19: 540 | J19: 66.7 | K19: 55.1 | L19: 7.6 | M19: 8.7
A20: 134 | B20: 2.13 | C20: - | F20: 644 | G20: 539 | J20: 66.4 | K20: 54.8 | L20: - | M20: -
A21: 133 | B21: 2.14 | C21: 1.51 | F21: 643 | G21: 538 | J21: 66.1 | K21: 54.5 | L21: - | M21: -
A22: 132 | B22: 2.15 | C22: - | F22: 642 | G22: 537 | J22: 65.8 | K22: 54.2 | L22: 7.7 | M22: 8.8
A23: 131 | B23: 2.16 | C23: 1.52 | F23: 641 | G23: 536 | J23: 65.5 | K23: 53.9 | L23: - | M23: -
A24: 130 | B24: - | C24: - | F24: 640 | G24: 535 | J24: 65.2 | K24: 53.6 | L24: - | M24: -
A25: 129 | B25: 2.17 | C25: 1.53 | F25: 639 | G25: 534 | J25: 64.9 | K25: 53.3 | L25: 7.8 | M25: 8.9
A26: 128 | B26: 2.18 | C26: - | F26: 638 | G26: 533 | J26: 64.6 | K26: 53 | L26: - | M26: -
A27: 127 | B27: 2.19 | C27: 1.54 | F27: 637 | G27: 532 | J27: 64.3 | K27: 52.7 | L27: - | M27: -
A28: 126 | B28: 2.2 | C28: - | F28: 636 | G28: 531 | J28: 64 | K28: 52.4 | L28: 7.9 | M28: 9
A29: 125 | B29: - | C29: 1.55 | F29: 635 | G29: 530 | J29: 63.7 | K29: 52.1 | L29: - | M29: -
A30: 124 | B30: 2.21 | C30: - | F30: 634 | G30: 529 | J30: 63.4 | K30: 51.8 | L30: - | M30: -
A31: 123 | B31: 2.22 | C31: 1.56 | F31: 633 | G31: 528 | J31: 63.1 | K31: 51.5 | L31: 8 | M31: 9.1
A32: 122 | B32: 2.23 | C32: - | F32: 632 | G32: 527 | J32: 62.8 | K32: 51.2 | L32: - | M32: -
A33: 121 | B33: 2.24 | C33: 1.57 | F33: 630 | G33: 526 | J33: 62.5 | K33: 50.9 | L33: - | M33: -
A34: 120 | B34: - | C34: - | F34: 628 | G34: 525 | J34: 62.2 | K34: 50.6 | L34: 8.1 | M34: 9.2
A35: 119 | B35: 2.25 | C35: 1.58 | F35: 626 | G35: 524 | J35: 61.9 | K35: 50.3 | L35: - | M35: -
A36: 118 | B36: 2.26 | C36: - | F36: 624 | G36: 523 | J36: 61.6 | K36: 50 | L36: - | M36: -
A37: 117 | B37: 2.27 | C37: 1.59 | F37: 622 | G37: 522 | J37: 61.3 | K37: 49.7 | L37: 8.2 | M37: 9.3
A38: 116 | B38: 2.28 | C38: - | F38: 620 | G38: 521 | J38: 61 | K38: 49.4 | L38: - | M38: -
A39: 115 | B39: - | C39: 2 | F39: 618 | G39: 520 | J39: 60.7 | K39: 49.1 | L39: - | M39: -
A40: 114 | B40: 2.29 | C40: - | F40: 616 | G40: 519 | J40: 60.4 | K40: 48.8 | L40: 8.3 | M40: 9.4
A41: 113 | B41: 2.3 | C41: 2.01 | F41: 614 | G41: 518 | J41: 60.1 | K41: 48.5 | L41: - | M41: -
A42: 112 | B42: 2.31 | C42: - | F42: 612 | G42: 517 | J42: 59.8 | K42: 48.2 | L42: - | M42: -
A43: 111 | B43: 2.32 | C43: 2.02 | F43: 610 | G43: 516 | J43: 59.5 | K43: 47.9 | L43: 8.4 | M43: 9.5
A44: 110 | B44: - | C44: - | F44: 608 | G44: 515 | J44: 59.1 | K44: 47.6 | L44: - | M44: -
A45: 109 | B45: 2.33 | C45: 2.03 | F45: 606 | G45: 514 | J45: 58.7 | K45: 47.3 | L45: - | M45: -
A46: 108 | B46: 2.34 | C46: - | F46: 604 | G46: 513 | J46: 58.3 | K46: 47 | L46: 8.5 | M46: 9.6
A47: 107 | B47: 2.35 | C47: 2.04 | F47: 602 | G47: 512 | J47: 57.9 | K47: 46.7 | L47: - | M47: -
A48: 106 | B48: 2.36 | C48: - | F48: 600 | G48: 511 | J48: 57.5 | K48: 46.4 | L48: - | M48: -
A49: 105 | B49: - | C49: 2.05 | F49: 598 | G49: 510 | J49: 57.1 | K49: 46.1 | L49: 8.6 | M49: 9.7
A50: 104 | B50: 2.37 | C50: - | F50: 596 | G50: 509 | J50: 56.7 | K50: 45.8 | L50: - | M50: -
A51: 103 | B51: 2.38 | C51: 2.06 | F51: 594 | G51: 507 | J51: 56.3 | K51: 45.5 | L51: - | M51: -
A52: 102 | B52: 2.39 | C52: - | F52: 592 | G52: 505 | J52: 55.9 | K52: 45.2 | L52: 8.7 | M52: 9.8
A53: 101 | B53: 2.4 | C53: 2.07 | F53: 590 | G53: 503 | J53: 55.5 | K53: 44.9 | L53: - | M53: -
A54: 100 | B54: - | C54: - | F54: 588 | G54: 501 | J54: 55.1 | K54: 44.6 | L54: - | M54: -
A55: 99 | B55: 2.41 | C55: 2.08 | F55: 586 | G55: 499 | J55: 54.7 | K55: 44.3 | L55: 8.8 | M55: 9.9
A56: 98 | B56: 2.42 | C56: - | F56: 584 | G56: 497 | J56: 54.3 | K56: 44 | L56: - | M56: -
A57: 97 | B57: 2.43 | C57: 2.09 | F57: 582 | G57: 495 | J57: 53.9 | K57: 43.7 | L57: - | M57: -
A58: 96 | B58: 2.44 | C58: - | F58: 580 | G58: 493 | J58: 53.5 | K58: 43.4 | L58: 8.9 | M58: 10
A59: 95 | B59: - | C59: 2.1 | F59: 578 | G59: 491 | J59: 53.1 | K59: 43.1 | L59: - | M59: -
A60: 94 | B60: 2.45 | C60: - | F60: 576 | G60: 489 | J60: 52.7 | K60: 42.8 | L60: - | M60: -
A61: 93 | B61: 2.46 | C61: 2.11 | F61: 574 | G61: 487 | J61: 52.3 | K61: 42.5 | L61: 9 | M61: 10.1
A62: 92 | B62: 2.47 | C62: - | F62: 572 | G62: 485 | J62: 51.9 | K62: 42.2 | L62: - | M62: -
A63: 91 | B63: 2.48 | C63: 2.12 | F63: 570 | G63: 483 | J63: 51.5 | K63: 41.9 | L63: - | M63: -
A64: 90 | B64: - | C64: - | F64: 568 | G64: 481 | J64: 51.1 | K64: 41.6 | L64: 9.1 | M64: 10.2
A65: 89 | B65: 2.49 | C65: 2.13 | F65: 566 | G65: 479 | J65: 50.7 | K65: 41.3 | L65: - | M65: -
A66: 88 | B66: 2.5 | C66: - | F66: 564 | G66: 477 | J66: 50.3 | K66: 41 | L66: - | M66: -
A67: 87 | B67: 2.51 | C67: 2.14 | F67: 562 | G67: 475 | J67: 49.9 | K67: 40.7 | L67: 9.2 | M67: 10.3
A68: 86 | B68: 2.52 | C68: - | F68: 559 | G68: 473 | J68: 49.5 | K68: 40.4 | L68: - | M68: -
A69: 85 | B69: - | C69: 2.15 | F69: 556 | G69: 471 | J69: 49.1 | K69: 40.1 | L69: - | M69: -
A70: 84 | B70: 2.53 | C70: - | F70: 553 | G70: 469 | J70: 48.7 | K70: 39.7 | L70: 9.3 | M70: 10.4
A71: 83 | B71: 2.54 | C71: 2.16 | F71: 550 | G71: 467 | J71: 48.3 | K71: 39.3 | L71: - | M71: -
A72: 82 | B72: 2.55 | C72: - | F72: 547 | G72: 465 | J72: 47.9 | K72: 38.9 | L72: - | M72: -
A73: 81 | B73: 2.56 | C73: 2.17 | F73: 544 | G73: 463 | J73: 47.5 | K73: 38.5 | L73: 9.4 | M73: 10.5
A74: 80 | B74: - | F74: 541 | G74: 461 | J74: 47.1 | K74: 38.1 | L74: - | M74: -
A75: 79 | B75: 2.57 | C75: 2.18 | F75: 538 | G75: 459 | J75: 46.7 | K75: 37.7 | L75: - | M75: -
A76: 78 | B76: 2.58 | C76: - | F76: 535 | G76: 457 | J76: 46.3 | K76: 37.3 | L76: 9.5 | M76: 10.6
A77: 77 | B77: 2.59 | C77: 2.19 | F77: 532 | G77: 455 | J77: 45.9 | K77: 36.9 | L77: - | M77: -
A78: 76 | B78: 3 | C78: - | F78: 529 | G78: 453 | J78: 45.5 | K78: 36.5 | L78: - | M78: -
A79: 75 | B79: - | C79: 2.2 | F79: 526 | G79: 451 | J79: 45.1 | K79: 36.1 | L79: 9.6 | M79: 10.7
A80: 74 | B80: 3.01 | C80: - | F80: 523 | G80: 449 | J80: 44.7 | K80: 35.7 | L80: - | M80: -
A81: 73 | B81: 3.02 | C81: 2.21 | F81: 520 | G81: 447 | J81: 44.3 | K81: 35.3 | L81: - | M81: -
A82: 72 | B82: 3.03 | C82: - | F82: 517 | G82: 445 | J82: 43.9 | K82: 34.9 | L82: 9.7 | M82: 10.8
A83: 71 | B83: 3.04 | C83: 2.22 | F83: 514 | G83: 443 | J83: 43.5 | K83: 34.5 | L83: - | M83: -
A84: 70 | B84: - | C84: - | F84: 511 | G84: 441 | J84: 43.1 | K84: 34.1 | L84: - | M84: -
A85: 69 | B85: 3.05 | C85: 2.23 | F85: 508 | G85: 439 | J85: 42.7 | K85: 33.7 | L85: 9.8 | M85: 10.9
A86: 68 | B86: 3.06 | C86: - | F86: 505 | G86: 437 | J86: 42.3 | K86: 33.3 | L86: - | M86: -
A87: 67 | B87: 3.07 | C87: 2.24 | F87: 502 | G87: 435 | J87: 41.9 | K87: 32.9 | L87: - | M87: -
A88: 66 | B88: 3.08 | C88: - | F88: 499 | G88: 433 | J88: 41.5 | K88: 32.5 | L88: 9.9 | M88: 11
A89: 65 | B89: - | C89: 2.25 | F89: 496 | G89: 431 | J89: 41.1 | K89: 32.1 | L89: - | M89: -
A90: 64 | B90: 3.09 | C90: - | F90: 493 | G90: 429 | J90: 40.7 | K90: 31.7 | L90: - | M90: -
A91: 63 | B91: 3.1 | C91: 2.26 | F91: 490 | G91: 427 | J91: 40.3 | K91: 31.3 | L91: 10 | M91: 11.1
A92: 62 | B92: 3.11 | C92: - | F92: 487 | G92: 425 | J92: 39.9 | K92: 30.9 | L92: - | M92: -
A93: 61 | B93: 3.12 | C93: 2.27 | F93: 484 | G93: 423 | J93: 39.5 | K93: 30.5 | L93: - | M93: -
A94: 60 | B94: - | C94: - | F94: 481 | G94: 421 | J94: 39.1 | K94: 30.1 | L94: 10.1 | M94: 11.2
A95: 59 | B95: 3.13 | C95: 2.28 | F95: 478 | G95: 419 | J95: 38.7 | K95: 29.7 | L95: - | M95: -
A96: 58 | B96: 3.14 | C96: - | F96: 475 | G96: 417 | J96: 38.3 | K96: 29.3 | L96: - | M96: -
A97: 57 | B97: 3.15 | C97: 2.29 | F97: 472 | G97: 415 | J97: 37.9 | K97: 28.9 | L97: 10.2 | M97: 11.3
A98: 56 | B98: 3.16 | C98: - | F98: 469 | G98: 413 | J98: 37.5 | K98: 28.5 | L98: - | M98: -
A99: 55 | B99: - | C99: 2.3 | F99: 466 | G99: 411 | J99: 37.1 | K99: 28.1 | L99: - | M99: -
A100: 54 | B100: 3.17 | C100: - | F100: 463 | G100: 408 | J100: 36.7 | K100: 27.7 | L100: 10.3 | M100: 11.4
A101: 53 | B101: 3.18 | C101: 2.31 | F101: 460 | G101: 405 | J101: 36.3 | K101: 27.3 | L101: - | M101: -
A102: 52 | B102: 3.19 | C102: - | F102: 457 | G102: 402 | J102: 35.9 | K102: 26.9 | L102: - | M102: -
A103: 51 | B103: 3.2 | C103: 2.32 | F103: 453 | G103: 399 | J103: 35.5 | K103: 26.5 | L103: 10.4 | M103: 11.5
A104: 50 | B104: - | C104: - | F104: 449 | G104: 396 | J104: 35.1 | K104: 26.1 | L104: - | M104: -
A105: 49 | B105: 3.21 | C105: 2.33 | F105: 445 | G105: 393 | J105: 34.7 | K105: 25.7 | L105: - | M105: -
A106: 48 | B106: 3.22 | C106: - | F106: 441 | G106: 390 | J106: 34.3 | K106: 25.3 | L106: 10.5 | M106: 11.6
A107: 47 | B107: 3.23 | C107: 2.34 | F107: 437 | G107: 387 | J107: 33.9 | K107: 24.9 | L107: - | M107: -
A108: 46 | B108: 3.24 | C108: - | F108: 433 | G108: 384 | J108: 33.5 | K108: 24.5 | L108: - | M108: -
A109: 45 | B109: - | C109: 2.35 | F109: 429 | G109: 381 | J109: 33 | K109: 24.1 | L109: 10.6 | M109: 11.7
A110: 44 | B110: 3.25 | C110: - | F110: 425 | G110: 378 | J110: 32.5 | K110: 23.7 | L110: - | M110: -
A111: 43 | B111: 3.26 | C111: 2.36 | F111: 421 | G111: 375 | J111: 32 | K111: 23.3 | L111: - | M111: -
A112: 42 | B112: 3.27 | C112: - | F112: 417 | G112: 372 | J112: 31.5 | K112: 22.9 | L112: 10.7 | M112: 11.8
A113: 41 | B113: 3.28 | C113: 2.37 | F113: 413 | G113: 369 | J113: 31 | K113: 22.5 | L113: - | M113: -
A114: 40 | B114: - | C114: - | F114: 409 | G114: 366 | J114: 30.5 | K114: 22.1 | L114: - | M114: -
A115: 39 | B115: 3.29 | C115: 2.38 | F115: 405 | G115: 363 | J115: 30 | K115: 21.7 | L115: 10.8 | M115: 11.9
A116: 38 | B116: 3.3 | C116: - | F116: 401 | G116: 360 | J116: 29.5 | K116: 21.3 | L116: - | M116: -
A117: 37 | B117: 3.31 | C117: 2.39 | F117: 397 | G117: 357 | J117: 29 | K117: 20.9 | L117: - | M117: -
A118: 36 | B118: 3.32 | C118: - | F118: 393 | G118: 353 | J118: 28.5 | K118: 20.5 | L118: 10.9 | M118: 12
A119: 35 | B119: - | C119: 2.4 | F119: 389 | G119: 349 | J119: 28 | K119: 20.1 | L119: - | M119: -
A120: 34 | B120: 3.33 | C120: - | F120: 385 | G120: 345 | J120: 27.5 | K120: 19.7 | L120: - | M120: -
A121: 33 | B121: 3.34 | C121: 2.41 | F121: 381 | G121: 341 | J121: 27 | K121: 19.3 | L121: 11 | M121: 12.1
A122: 32 | B122: 3.35 | C122: - | F122: 377 | G122: 337 | J122: 26.5 | K122: 18.9 | L122: - | M122: -
A123: 31 | B123: 3.36 | C123: 2.42 | F123: 373 | G123: 333 | J123: 26 | K123: 18.5 | L123: - | M123: -
A124: 30 | B124: - | C124: - | F124: 369 | G124: 329 | J124: 25.5 | K124: 18.1 | L124: 11.1 | M124: 12.2
A125: 29 | B125: 3.37 | C125: 2.43 | F125: 365 | G125: 325 | J125: 25 | K125: 17.7 | L125: - | M125: -
A126: 28 | B126: 3.38 | C126: - | F126: 361 | G126: 321 | J126: 24.5 | K126: 17.3 | L126: - | M126: -
A127: 27 | B127: 3.39 | C127: 2.44 | F127: 357 | G127: 317 | J127: 24 | K127: 16.9 | L127: 11.2 | M127: 12.3
A128: 26 | B128: 3.4 | C128: - | F128: 353 | G128: 313 | J128: 23.5 | K128: 16.5 | L128: - | M128: -
A129: 25 | B129: - | C129: 2.45 | F129: 349 | G129: 309 | J129: 23 | K129: 16.1 | L129: - | M129: -
A130: 24 | B130: 3.41 | C130: 2.46 | F130: 345 | G130: 305 | J130: 22.5 | K130: 15.7 | L130: 11.3 | M130: 12.4
A131: 23 | B131: 3.42 | C131: - | F131: 340 | G131: 301 | J131: 22 | K131: 15.3 | L131: - | M131: -
A132: 22 | B132: 3.43 | C132: 2.47 | F132: 335 | G132: 297 | J132: 21.5 | K132: 14.9 | L132: - | M132: -
A133: 21 | B133: 3.44 | C133: 2.48 | F133: 330 | G133: 293 | J133: 21 | K133: 14.5 | L133: 11.4 | M133: 12.5
A134: 20 | B134: - | C134: - | F134: 325 | G134: 289 | J134: 20.5 | K134: 14.1 | L134: - | M134: -
A135: 19 | B135: 3.45 | C135: 2.49 | F135: 320 | G135: 285 | J135: 20 | K135: 13.7 | L135: - | M135: 12.6
A136: 18 | B136: 3.46 | C136: - | F136: 315 | G136: 281 | J136: 19.5 | K136: 13.3 | L136: 11.5 | M136: -
A137: 17 | B137: 3.47 | C137: 2.5 | F137: 310 | G137: 277 | J137: 19 | K137: 12.9 | L137: - | M137: 12.7
A138: 16 | B138: 3.48 | C138: 2.51 | F138: 305 | G138: 273 | J138: 18.5 | K138: 12.5 | L138: - | M138: -
A139: 15 | B139: - | C139: - | F139: 300 | G139: 269 | J139: 18 | K139: 12.1 | L139: 11.6 | M139: 12.8
A140: 14 | B140: 3.49 | C140: 2.52 | F140: 295 | G140: 265 | J140: 17.5 | K140: 11.7 | L140: - | M140: -
A141: 13 | B141: 3.5 | C141: - | F141: 290 | G141: 260 | J141: 17 | K141: 11.3 | L141: - | M141: 12.9
A142: 12 | B142: 3.51 | C142: 2.53 | F142: 285 | G142: 255 | J142: 16.5 | K142: 10.9 | L142: 11.7 | M142: -
A143: 11 | B143: 3.52 | C143: 2.54 | F143: 280 | G143: 250 | J143: 16 | K143: 10.5 | L143: - | M143: 13
A144: 10 | B144: - | C144: - | F144: 275 | G144: 245 | J144: 15.5 | K144: 10.1 | L144: - | M144: -
A145: 9 | B145: 3.53 | C145: 2.55 | F145: 270 | G145: 240 | J145: 15 | K145: 9.7 | L145: 11.8 | M145: 13.1
A146: 8 | B146: 3.54 | C146: - | F146: 265 | G146: 235 | J146: 14.5 | K146: 9.3 | L146: - | M146: -
A147: 7 | B147: 3.55 | C147: 2.56 | F147: 260 | G147: 230 | J147: 14 | K147: 8.9 | L147: 11.9 | M147: 13.2
A148: 6 | B148: 3.56 | C148: 2.57 | F148: 255 | G148: 225 | J148: 13.5 | K148: 8.5 | L148: - | M148: -
A149: 5 | B149: - | C149: - | F149: 250 | G149: 220 | J149: 13 | K149: 8.1 | L149: 12 | M149: 13.3
A150: 4 | B150: 3.57 | C150: 2.58 | F150: 245 | G150: 215 | J150: 12.5 | K150: 7.7 | L150: - | M150: -
A151: 3 | B151: 3.58 | C151: - | F151: 240 | G151: 210 | J151: 12 | K151: 7.3 | L151: 12.1 | M151: 13.4
A152: 2 | B152: 3.59 | C152: 2.59 | F152: 235 | G152: 205 | J152: 11.5 | K152: 6.9 | L152: - | M152: -
A153: 1 | B153: 4 | C153: 3 | F153: 230 | G153: 200 | J153: 11 | K153: 6.5 | L153: 12.2 | M153: 13.5

Sheet 15
A1: 15
A2: Очки | B2: Бег 800м/600д (мин сек) | F2: Прыжок с разбега (см) | J2: Метание мяча 140 гр (м) | L2: Бег 60 м (сек) | M2: 30 м
B3: м | C3: ж | D3: м | E3: ж | F3: м | G3: ж | H3: м | I3: ж | J3: м | K3: ж | L3: м | M3: ж
A4: 150 | B4: 2.01 | C4: 1.43 | F4: 660 | G4: 555 | J4: 70 | K4: 58 | L4: 7.1 | M4: 8
A5: 149 | B5: - | C5: - | F5: 659 | G5: 554 | J5: 69.7 | K5: 57.9 | L5: - | M5: -
A6: 148 | B6: 2.02 | C6: - | F6: 658 | G6: 553 | J6: 69.5 | K6: 57.8 | L6: - | M6: 8.1
A7: 147 | B7: 2.03 | C7: 1.44 | F7: 657 | G7: 552 | J7: 69.3 | K7: 57.7 | L7: 7.2 | M7: -
A8: 146 | B8: 2.04 | C8: - | F8: 656 | G8: 551 | J8: 69.1 | K8: 57.6 | L8: - | M8: 8.2
A9: 145 | B9: - | C9: 1.45 | F9: 655 | G9: 550 | J9: 68.9 | K9: 57.4 | L9: - | M9: -
A10: 144 | B10: 2.05 | C10: - | F10: 654 | G10: 549 | J10: 68.7 | K10: 57.2 | L10: 7.3 | M10: 8.3
A11: 143 | B11: 2.06 | C11: 1.46 | F11: 653 | G11: 548 | J11: 68.5 | K11: 57 | L11: - | M11: -
A12: 142 | B12: 2.07 | C12: - | F12: 652 | G12: 547 | J12: 68.3 | K12: 56.8 | L12: - | M12: 8.4
A13: 141 | B13: 2.08 | C13: 1.47 | F13: 651 | G13: 546 | J13: 68.1 | K13: 56.6 | L13: 7.4 | M13: -
A14: 140 | B14: - | C14: - | F14: 650 | G14: 545 | J14: 67.9 | K14: 56.4 | L14: - | M14: 8.5
A15: 139 | B15: 2.09 | C15: 1.48 | F15: 649 | G15: 544 | J15: 67.7 | K15: 56.2 | L15: - | M15: -
A16: 138 | B16: 2.1 | C16: - | F16: 648 | G16: 543 | J16: 67.5 | K16: 56 | L16: 7.5 | M16: 8.6
A17: 137 | B17: 2.11 | C17: 1.49 | F17: 647 | G17: 542 | J17: 67.3 | K17: 55.7 | L17: - | M17: -
A18: 136 | B18: 2.12 | C18: - | F18: 646 | G18: 541 | J18: 67 | K18: 55.4 | L18: - | M18: -
A19: 135 | B19: - | C19: 1.5 | F19: 645 | G19: 540 | J19: 66.7 | K19: 55.1 | L19: 7.6 | M19: 8.7
A20: 134 | B20: 2.13 | C20: - | F20: 644 | G20: 539 | J20: 66.4 | K20: 54.8 | L20: - | M20: -
A21: 133 | B21: 2.14 | C21: 1.51 | F21: 643 | G21: 538 | J21: 66.1 | K21: 54.5 | L21: - | M21: -
A22: 132 | B22: 2.15 | C22: - | F22: 642 | G22: 537 | J22: 65.8 | K22: 54.2 | L22: 7.7 | M22: 8.8
A23: 131 | B23: 2.16 | C23: 1.52 | F23: 641 | G23: 536 | J23: 65.5 | K23: 53.9 | L23: - | M23: -
A24: 130 | B24: - | C24: - | F24: 640 | G24: 535 | J24: 65.2 | K24: 53.6 | L24: - | M24: -
A25: 129 | B25: 2.17 | C25: 1.53 | F25: 639 | G25: 534 | J25: 64.9 | K25: 53.3 | L25: 7.8 | M25: 8.9
A26: 128 | B26: 2.18 | C26: - | F26: 638 | G26: 533 | J26: 64.6 | K26: 53 | L26: - | M26: -
A27: 127 | B27: 2.19 | C27: 1.54 | F27: 637 | G27: 532 | J27: 64.3 | K27: 52.7 | L27: - | M27: -
A28: 126 | B28: 2.2 | C28: - | F28: 636 | G28: 531 | J28: 64 | K28: 52.4 | L28: 7.9 | M28: 9
A29: 125 | B29: - | C29: 1.55 | F29: 635 | G29: 530 | J29: 63.7 | K29: 52.1 | L29: - | M29: -
A30: 124 | B30: 2.21 | C30: - | F30: 634 | G30: 529 | J30: 63.4 | K30: 51.8 | L30: - | M30: -
A31: 123 | B31: 2.22 | C31: 1.56 | F31: 633 | G31: 528 | J31: 63.1 | K31: 51.5 | L31: 8 | M31: 9.1
A32: 122 | B32: 2.23 | C32: - | F32: 632 | G32: 527 | J32: 62.8 | K32: 51.2 | L32: - | M32: -
A33: 121 | B33: 2.24 | C33: 1.57 | F33: 630 | G33: 526 | J33: 62.5 | K33: 50.9 | L33: - | M33: -
A34: 120 | B34: - | C34: - | F34: 628 | G34: 525 | J34: 62.2 | K34: 50.6 | L34: 8.1 | M34: 9.2
A35: 119 | B35: 2.25 | C35: 1.58 | F35: 626 | G35: 524 | J35: 61.9 | K35: 50.3 | L35: - | M35: -
A36: 118 | B36: 2.26 | C36: - | F36: 624 | G36: 523 | J36: 61.6 | K36: 50 | L36: - | M36: -
A37: 117 | B37: 2.27 | C37: 1.59 | F37: 622 | G37: 522 | J37: 61.3 | K37: 49.7 | L37: 8.2 | M37: 9.3
A38: 116 | B38: 2.28 | C38: - | F38: 620 | G38: 521 | J38: 61 | K38: 49.4 | L38: - | M38: -
A39: 115 | B39: - | C39: 2 | F39: 618 | G39: 520 | J39: 60.7 | K39: 49.1 | L39: - | M39: -
A40: 114 | B40: 2.29 | C40: - | F40: 616 | G40: 519 | J40: 60.4 | K40: 48.8 | L40: 8.3 | M40: 9.4
A41: 113 | B41: 2.3 | C41: 2.01 | F41: 614 | G41: 518 | J41: 60.1 | K41: 48.5 | L41: - | M41: -
A42: 112 | B42: 2.31 | C42: - | F42: 612 | G42: 517 | J42: 59.8 | K42: 48.2 | L42: - | M42: -
A43: 111 | B43: 2.32 | C43: 2.02 | F43: 610 | G43: 516 | J43: 59.5 | K43: 47.9 | L43: 8.4 | M43: 9.5
A44: 110 | B44: - | C44: - | F44: 608 | G44: 515 | J44: 59.1 | K44: 47.6 | L44: - | M44: -
A45: 109 | B45: 2.33 | C45: 2.03 | F45: 606 | G45: 514 | J45: 58.7 | K45: 47.3 | L45: - | M45: -
A46: 108 | B46: 2.34 | C46: - | F46: 604 | G46: 513 | J46: 58.3 | K46: 47 | L46: 8.5 | M46: 9.6
A47: 107 | B47: 2.35 | C47: 2.04 | F47: 602 | G47: 512 | J47: 57.9 | K47: 46.7 | L47: - | M47: -
A48: 106 | B48: 2.36 | C48: - | F48: 600 | G48: 511 | J48: 57.5 | K48: 46.4 | L48: - | M48: -
A49: 105 | B49: - | C49: 2.05 | F49: 598 | G49: 510 | J49: 57.1 | K49: 46.1 | L49: 8.6 | M49: 9.7
A50: 104 | B50: 2.37 | C50: - | F50: 596 | G50: 509 | J50: 56.7 | K50: 45.8 | L50: - | M50: -
A51: 103 | B51: 2.38 | C51: 2.06 | F51: 594 | G51: 507 | J51: 56.3 | K51: 45.5 | L51: - | M51: -
A52: 102 | B52: 2.39 | C52: - | F52: 592 | G52: 505 | J52: 55.9 | K52: 45.2 | L52: 8.7 | M52: 9.8
A53: 101 | B53: 2.4 | C53: 2.07 | F53: 590 | G53: 503 | J53: 55.5 | K53: 44.9 | L53: - | M53: -
A54: 100 | B54: - | C54: - | F54: 588 | G54: 501 | J54: 55.1 | K54: 44.6 | L54: - | M54: -
A55: 99 | B55: 2.41 | C55: 2.08 | F55: 586 | G55: 499 | J55: 54.7 | K55: 44.3 | L55: 8.8 | M55: 9.9
A56: 98 | B56: 2.42 | C56: - | F56: 584 | G56: 497 | J56: 54.3 | K56: 44 | L56: - | M56: -
A57: 97 | B57: 2.43 | C57: 2.09 | F57: 582 | G57: 495 | J57: 53.9 | K57: 43.7 | L57: - | M57: -
A58: 96 | B58: 2.44 | C58: - | F58: 580 | G58: 493 | J58: 53.5 | K58: 43.4 | L58: 8.9 | M58: 10
A59: 95 | B59: - | C59: 2.1 | F59: 578 | G59: 491 | J59: 53.1 | K59: 43.1 | L59: - | M59: -
A60: 94 | B60: 2.45 | C60: - | F60: 576 | G60: 489 | J60: 52.7 | K60: 42.8 | L60: - | M60: -
A61: 93 | B61: 2.46 | C61: 2.11 | F61: 574 | G61: 487 | J61: 52.3 | K61: 42.5 | L61: 9 | M61: 10.1
A62: 92 | B62: 2.47 | C62: - | F62: 572 | G62: 485 | J62: 51.9 | K62: 42.2 | L62: - | M62: -
A63: 91 | B63: 2.48 | C63: 2.12 | F63: 570 | G63: 483 | J63: 51.5 | K63: 41.9 | L63: - | M63: -
A64: 90 | B64: - | C64: - | F64: 568 | G64: 481 | J64: 51.1 | K64: 41.6 | L64: 9.1 | M64: 10.2
A65: 89 | B65: 2.49 | C65: 2.13 | F65: 566 | G65: 479 | J65: 50.7 | K65: 41.3 | L65: - | M65: -
A66: 88 | B66: 2.5 | C66: - | F66: 564 | G66: 477 | J66: 50.3 | K66: 41 | L66: - | M66: -
A67: 87 | B67: 2.51 | C67: 2.14 | F67: 562 | G67: 475 | J67: 49.9 | K67: 40.7 | L67: 9.2 | M67: 10.3
A68: 86 | B68: 2.52 | C68: - | F68: 559 | G68: 473 | J68: 49.5 | K68: 40.4 | L68: - | M68: -
A69: 85 | B69: - | C69: 2.15 | F69: 556 | G69: 471 | J69: 49.1 | K69: 40.1 | L69: - | M69: -
A70: 84 | B70: 2.53 | C70: - | F70: 553 | G70: 469 | J70: 48.7 | K70: 39.7 | L70: 9.3 | M70: 10.4
A71: 83 | B71: 2.54 | C71: 2.16 | F71: 550 | G71: 467 | J71: 48.3 | K71: 39.3 | L71: - | M71: -
A72: 82 | B72: 2.55 | C72: - | F72: 547 | G72: 465 | J72: 47.9 | K72: 38.9 | L72: - | M72: -
A73: 81 | B73: 2.56 | C73: 2.17 | F73: 544 | G73: 463 | J73: 47.5 | K73: 38.5 | L73: 9.4 | M73: 10.5
A74: 80 | B74: - | F74: 541 | G74: 461 | J74: 47.1 | K74: 38.1 | L74: - | M74: -
A75: 79 | B75: 2.57 | C75: 2.18 | F75: 538 | G75: 459 | J75: 46.7 | K75: 37.7 | L75: - | M75: -
A76: 78 | B76: 2.58 | C76: - | F76: 535 | G76: 457 | J76: 46.3 | K76: 37.3 | L76: 9.5 | M76: 10.6
A77: 77 | B77: 2.59 | C77: 2.19 | F77: 532 | G77: 455 | J77: 45.9 | K77: 36.9 | L77: - | M77: -
A78: 76 | B78: 3 | C78: - | F78: 529 | G78: 453 | J78: 45.5 | K78: 36.5 | L78: - | M78: -
A79: 75 | B79: - | C79: 2.2 | F79: 526 | G79: 451 | J79: 45.1 | K79: 36.1 | L79: 9.6 | M79: 10.7
A80: 74 | B80: 3.01 | C80: - | F80: 523 | G80: 449 | J80: 44.7 | K80: 35.7 | L80: - | M80: -
A81: 73 | B81: 3.02 | C81: 2.21 | F81: 520 | G81: 447 | J81: 44.3 | K81: 35.3 | L81: - | M81: -
A82: 72 | B82: 3.03 | C82: - | F82: 517 | G82: 445 | J82: 43.9 | K82: 34.9 | L82: 9.7 | M82: 10.8
A83: 71 | B83: 3.04 | C83: 2.22 | F83: 514 | G83: 443 | J83: 43.5 | K83: 34.5 | L83: - | M83: -
A84: 70 | B84: - | C84: - | F84: 511 | G84: 441 | J84: 43.1 | K84: 34.1 | L84: - | M84: -
A85: 69 | B85: 3.05 | C85: 2.23 | F85: 508 | G85: 439 | J85: 42.7 | K85: 33.7 | L85: 9.8 | M85: 10.9
A86: 68 | B86: 3.06 | C86: - | F86: 505 | G86: 437 | J86: 42.3 | K86: 33.3 | L86: - | M86: -
A87: 67 | B87: 3.07 | C87: 2.24 | F87: 502 | G87: 435 | J87: 41.9 | K87: 32.9 | L87: - | M87: -
A88: 66 | B88: 3.08 | C88: - | F88: 499 | G88: 433 | J88: 41.5 | K88: 32.5 | L88: 9.9 | M88: 11
A89: 65 | B89: - | C89: 2.25 | F89: 496 | G89: 431 | J89: 41.1 | K89: 32.1 | L89: - | M89: -
A90: 64 | B90: 3.09 | C90: - | F90: 493 | G90: 429 | J90: 40.7 | K90: 31.7 | L90: - | M90: -
A91: 63 | B91: 3.1 | C91: 2.26 | F91: 490 | G91: 427 | J91: 40.3 | K91: 31.3 | L91: 10 | M91: 11.1
A92: 62 | B92: 3.11 | C92: - | F92: 487 | G92: 425 | J92: 39.9 | K92: 30.9 | L92: - | M92: -
A93: 61 | B93: 3.12 | C93: 2.27 | F93: 484 | G93: 423 | J93: 39.5 | K93: 30.5 | L93: - | M93: -
A94: 60 | B94: - | C94: - | F94: 481 | G94: 421 | J94: 39.1 | K94: 30.1 | L94: 10.1 | M94: 11.2
A95: 59 | B95: 3.13 | C95: 2.28 | F95: 478 | G95: 419 | J95: 38.7 | K95: 29.7 | L95: - | M95: -
A96: 58 | B96: 3.14 | C96: - | F96: 475 | G96: 417 | J96: 38.3 | K96: 29.3 | L96: - | M96: -
A97: 57 | B97: 3.15 | C97: 2.29 | F97: 472 | G97: 415 | J97: 37.9 | K97: 28.9 | L97: 10.2 | M97: 11.3
A98: 56 | B98: 3.16 | C98: - | F98: 469 | G98: 413 | J98: 37.5 | K98: 28.5 | L98: - | M98: -
A99: 55 | B99: - | C99: 2.3 | F99: 466 | G99: 411 | J99: 37.1 | K99: 28.1 | L99: - | M99: -
A100: 54 | B100: 3.17 | C100: - | F100: 463 | G100: 408 | J100: 36.7 | K100: 27.7 | L100: 10.3 | M100: 11.4
A101: 53 | B101: 3.18 | C101: 2.31 | F101: 460 | G101: 405 | J101: 36.3 | K101: 27.3 | L101: - | M101: -
A102: 52 | B102: 3.19 | C102: - | F102: 457 | G102: 402 | J102: 35.9 | K102: 26.9 | L102: - | M102: -
A103: 51 | B103: 3.2 | C103: 2.32 | F103: 453 | G103: 399 | J103: 35.5 | K103: 26.5 | L103: 10.4 | M103: 11.5
A104: 50 | B104: - | C104: - | F104: 449 | G104: 396 | J104: 35.1 | K104: 26.1 | L104: - | M104: -
A105: 49 | B105: 3.21 | C105: 2.33 | F105: 445 | G105: 393 | J105: 34.7 | K105: 25.7 | L105: - | M105: -
A106: 48 | B106: 3.22 | C106: - | F106: 441 | G106: 390 | J106: 34.3 | K106: 25.3 | L106: 10.5 | M106: 11.6
A107: 47 | B107: 3.23 | C107: 2.34 | F107: 437 | G107: 387 | J107: 33.9 | K107: 24.9 | L107: - | M107: -
A108: 46 | B108: 3.24 | C108: - | F108: 433 | G108: 384 | J108: 33.5 | K108: 24.5 | L108: - | M108: -
A109: 45 | B109: - | C109: 2.35 | F109: 429 | G109: 381 | J109: 33 | K109: 24.1 | L109: 10.6 | M109: 11.7
A110: 44 | B110: 3.25 | C110: - | F110: 425 | G110: 378 | J110: 32.5 | K110: 23.7 | L110: - | M110: -
A111: 43 | B111: 3.26 | C111: 2.36 | F111: 421 | G111: 375 | J111: 32 | K111: 23.3 | L111: - | M111: -
A112: 42 | B112: 3.27 | C112: - | F112: 417 | G112: 372 | J112: 31.5 | K112: 22.9 | L112: 10.7 | M112: 11.8
A113: 41 | B113: 3.28 | C113: 2.37 | F113: 413 | G113: 369 | J113: 31 | K113: 22.5 | L113: - | M113: -
A114: 40 | B114: - | C114: - | F114: 409 | G114: 366 | J114: 30.5 | K114: 22.1 | L114: - | M114: -
A115: 39 | B115: 3.29 | C115: 2.38 | F115: 405 | G115: 363 | J115: 30 | K115: 21.7 | L115: 10.8 | M115: 11.9
A116: 38 | B116: 3.3 | C116: - | F116: 401 | G116: 360 | J116: 29.5 | K116: 21.3 | L116: - | M116: -
A117: 37 | B117: 3.31 | C117: 2.39 | F117: 397 | G117: 357 | J117: 29 | K117: 20.9 | L117: - | M117: -
A118: 36 | B118: 3.32 | C118: - | F118: 393 | G118: 353 | J118: 28.5 | K118: 20.5 | L118: 10.9 | M118: 12
A119: 35 | B119: - | C119: 2.4 | F119: 389 | G119: 349 | J119: 28 | K119: 20.1 | L119: - | M119: -
A120: 34 | B120: 3.33 | C120: - | F120: 385 | G120: 345 | J120: 27.5 | K120: 19.7 | L120: - | M120: -
A121: 33 | B121: 3.34 | C121: 2.41 | F121: 381 | G121: 341 | J121: 27 | K121: 19.3 | L121: 11 | M121: 12.1
A122: 32 | B122: 3.35 | C122: - | F122: 377 | G122: 337 | J122: 26.5 | K122: 18.9 | L122: - | M122: -
A123: 31 | B123: 3.36 | C123: 2.42 | F123: 373 | G123: 333 | J123: 26 | K123: 18.5 | L123: - | M123: -
A124: 30 | B124: - | C124: - | F124: 369 | G124: 329 | J124: 25.5 | K124: 18.1 | L124: 11.1 | M124: 12.2
A125: 29 | B125: 3.37 | C125: 2.43 | F125: 365 | G125: 325 | J125: 25 | K125: 17.7 | L125: - | M125: -
A126: 28 | B126: 3.38 | C126: - | F126: 361 | G126: 321 | J126: 24.5 | K126: 17.3 | L126: - | M126: -
A127: 27 | B127: 3.39 | C127: 2.44 | F127: 357 | G127: 317 | J127: 24 | K127: 16.9 | L127: 11.2 | M127: 12.3
A128: 26 | B128: 3.4 | C128: - | F128: 353 | G128: 313 | J128: 23.5 | K128: 16.5 | L128: - | M128: -
A129: 25 | B129: - | C129: 2.45 | F129: 349 | G129: 309 | J129: 23 | K129: 16.1 | L129: - | M129: -
A130: 24 | B130: 3.41 | C130: 2.46 | F130: 345 | G130: 305 | J130: 22.5 | K130: 15.7 | L130: 11.3 | M130: 12.4
A131: 23 | B131: 3.42 | C131: - | F131: 340 | G131: 301 | J131: 22 | K131: 15.3 | L131: - | M131: -
A132: 22 | B132: 3.43 | C132: 2.47 | F132: 335 | G132: 297 | J132: 21.5 | K132: 14.9 | L132: - | M132: -
A133: 21 | B133: 3.44 | C133: 2.48 | F133: 330 | G133: 293 | J133: 21 | K133: 14.5 | L133: 11.4 | M133: 12.5
A134: 20 | B134: - | C134: - | F134: 325 | G134: 289 | J134: 20.5 | K134: 14.1 | L134: - | M134: -
A135: 19 | B135: 3.45 | C135: 2.49 | F135: 320 | G135: 285 | J135: 20 | K135: 13.7 | L135: - | M135: 12.6
A136: 18 | B136: 3.46 | C136: - | F136: 315 | G136: 281 | J136: 19.5 | K136: 13.3 | L136: 11.5 | M136: -
A137: 17 | B137: 3.47 | C137: 2.5 | F137: 310 | G137: 277 | J137: 19 | K137: 12.9 | L137: - | M137: 12.7
A138: 16 | B138: 3.48 | C138: 2.51 | F138: 305 | G138: 273 | J138: 18.5 | K138: 12.5 | L138: - | M138: -
A139: 15 | B139: - | C139: - | F139: 300 | G139: 269 | J139: 18 | K139: 12.1 | L139: 11.6 | M139: 12.8
A140: 14 | B140: 3.49 | C140: 2.52 | F140: 295 | G140: 265 | J140: 17.5 | K140: 11.7 | L140: - | M140: -
A141: 13 | B141: 3.5 | C141: - | F141: 290 | G141: 260 | J141: 17 | K141: 11.3 | L141: - | M141: 12.9
A142: 12 | B142: 3.51 | C142: 2.53 | F142: 285 | G142: 255 | J142: 16.5 | K142: 10.9 | L142: 11.7 | M142: -
A143: 11 | B143: 3.52 | C143: 2.54 | F143: 280 | G143: 250 | J143: 16 | K143: 10.5 | L143: - | M143: 13
A144: 10 | B144: - | C144: - | F144: 275 | G144: 245 | J144: 15.5 | K144: 10.1 | L144: - | M144: -
A145: 9 | B145: 3.53 | C145: 2.55 | F145: 270 | G145: 240 | J145: 15 | K145: 9.7 | L145: 11.8 | M145: 13.1
A146: 8 | B146: 3.54 | C146: - | F146: 265 | G146: 235 | J146: 14.5 | K146: 9.3 | L146: - | M146: -
A147: 7 | B147: 3.55 | C147: 2.56 | F147: 260 | G147: 230 | J147: 14 | K147: 8.9 | L147: 11.9 | M147: 13.2
A148: 6 | B148: 3.56 | C148: 2.57 | F148: 255 | G148: 225 | J148: 13.5 | K148: 8.5 | L148: - | M148: -
A149: 5 | B149: - | C149: - | F149: 250 | G149: 220 | J149: 13 | K149: 8.1 | L149: 12 | M149: 13.3
A150: 4 | B150: 3.57 | C150: 2.58 | F150: 245 | G150: 215 | J150: 12.5 | K150: 7.7 | L150: - | M150: -
A151: 3 | B151: 3.58 | C151: - | F151: 240 | G151: 210 | J151: 12 | K151: 7.3 | L151: 12.1 | M151: 13.4
A152: 2 | B152: 3.59 | C152: 2.59 | F152: 235 | G152: 205 | J152: 11.5 | K152: 6.9 | L152: - | M152: -
A153: 1 | B153: 4 | C153: 3 | F153: 230 | G153: 200 | J153: 11 | K153: 6.5 | L153: 12.2 | M153: 13.5
